[Event "Titled Tuesday Blitz May 16 Early 2023"]
[White "Mamedyarov, Shakhriyar"]
[Black "Drozdowski, Kacper"]
[WhiteFideId "13401319"]
[BlackFideId "1136720"]
[WhiteElo "2704"]
[BlackElo "2497"]
[Result "1-0"]
[Round "05"]
[TimeControl "180+2"]
[Date "2023.05.16"]
[WhiteClock "0:00:39"]
[BlackClock "0:00:26"]

1. d4 {[%clk 0:03:00]}  d5 {[%clk 0:03:00]} 2. c4 {[%clk 0:03:01]}  c6 {[%clk 0:03:00]} 3. Nf3 {[%clk 0:02:57]}  Nf6 {[%clk 0:03:00]} 4. Qb3 {[%clk 0:02:57]}  e6 {[%clk 0:02:59]} 5. Bg5 {[%clk 0:02:55]}  dxc4 {[%clk 0:02:59]} 6. Qxc4 {[%clk 0:02:55]}  b5 {[%clk 0:02:59]} 7. Qc2 {[%clk 0:02:54]}  Bb7 {[%clk 0:03:00]} 8. e4 {[%clk 0:02:51]}  h6 {[%clk 0:02:58]} 9. Bxf6 {[%clk 0:02:48]}  Qxf6 {[%clk 0:02:59]} 10. Nbd2 {[%clk 0:02:48]}  Nd7 {[%clk 0:02:57]} 11. a3 {[%clk 0:02:41]}  a5 {[%clk 0:02:56]} 12. Rc1 {[%clk 0:02:30]}  Qd8 {[%clk 0:02:55]} 13. Be2 {[%clk 0:02:21]}  Be7 {[%clk 0:02:55]} 14. O-O {[%clk 0:02:20]}  O-O {[%clk 0:02:56]} 15. Rfd1 {[%clk 0:02:21]}  Qb6 {[%clk 0:02:54]} 16. Nb3 {[%clk 0:02:16]}  Rfd8 {[%clk 0:02:54]} 17. e5 {[%clk 0:01:54]}  a4 {[%clk 0:02:49]} 18. Nc5 {[%clk 0:01:52]}  Nxc5 {[%clk 0:02:47]} 19. dxc5 {[%clk 0:01:53]}  Rxd1+ {[%clk 0:02:47]} 20. Bxd1 {[%clk 0:01:54]}  Qa5 {[%clk 0:02:40]} 21. Qe4 {[%clk 0:01:45]}  Rd8 {[%clk 0:02:38]} 22. h4 {[%clk 0:01:41]}  h5 {[%clk 0:02:20]} 23. Bc2 {[%clk 0:01:38]}  g6 {[%clk 0:02:17]} 24. Qf4 {[%clk 0:01:39]}  Rd5 {[%clk 0:01:52]} 25. Be4 {[%clk 0:01:18]}  Rxc5 {[%clk 0:01:48]} 26. Rd1 {[%clk 0:01:15]}  Qc7 {[%clk 0:01:46]} 27. Bxg6 {[%clk 0:01:11]}  fxg6 {[%clk 0:01:40]} 28. Qh6 {[%clk 0:01:11]}  Bf8 {[%clk 0:01:15]} 29. Qxg6+ {[%clk 0:01:11]}  Qg7 {[%clk 0:01:15]} 30. Qxe6+ {[%clk 0:01:11]}  Qf7 {[%clk 0:01:06]} 31. Qxf7+ {[%clk 0:01:11]}  Kxf7 {[%clk 0:01:07]} 32. Rd7+ {[%clk 0:01:11]}  Ke6 {[%clk 0:01:08]} 33. Rxb7 {[%clk 0:01:12]}  Rc1+ {[%clk 0:01:07]} 34. Kh2 {[%clk 0:01:12]}  Bc5 {[%clk 0:01:08]} 35. Rh7 {[%clk 0:00:53]}  Bxf2 {[%clk 0:01:05]} 36. Rxh5 {[%clk 0:00:51]}  Rc2 {[%clk 0:01:03]} 37. Rh6+ {[%clk 0:00:51]}  Ke7 {[%clk 0:01:02]} 38. h5 {[%clk 0:00:47]}  Be3 {[%clk 0:01:02]} 39. Rh7+ {[%clk 0:00:43]}  Ke6 {[%clk 0:01:00]} 40. h6 {[%clk 0:00:43]}  Rxb2 {[%clk 0:00:55]} 41. Rc7 {[%clk 0:00:43]}  Rb1 {[%clk 0:00:31]} 42. Rxc6+ {[%clk 0:00:41]}  Kd5 {[%clk 0:00:30]} 43. Rd6+ {[%clk 0:00:40]}  Kc5 {[%clk 0:00:30]} 44. h7 {[%clk 0:00:38]}  Bf4+ {[%clk 0:00:26]} 45. g3 {[%clk 0:00:39]} 1-0


[Site "https://www.chess.com"]

[Event "Titled Tuesday Blitz May 16 Early 2023"]
[White "Lobanov, Sergei"]
[Black "Le, Tuan Minh"]
[WhiteFideId "24183750"]
[BlackFideId "12401153"]
[WhiteElo "2501"]
[BlackElo "2566"]
[Result "0-1"]
[Round "05"]
[TimeControl "180+2"]
[Date "2023.05.16"]
[WhiteClock "0:00:00"]
[BlackClock "0:00:12"]

1. d4 {[%clk 0:03:00]}  d5 {[%clk 0:02:57]} 2. c4 {[%clk 0:03:00]}  c6 {[%clk 0:02:57]} 3. Nf3 {[%clk 0:03:01]}  Nf6 {[%clk 0:02:55]} 4. e3 {[%clk 0:03:01]}  Bf5 {[%clk 0:02:54]} 5. Nc3 {[%clk 0:03:00]}  e6 {[%clk 0:02:54]} 6. Nh4 {[%clk 0:03:00]}  Be4 {[%clk 0:02:54]} 7. f3 {[%clk 0:02:59]}  Bg6 {[%clk 0:02:55]} 8. Bd2 {[%clk 0:03:00]}  Nbd7 {[%clk 0:02:54]} 9. Nxg6 {[%clk 0:03:00]}  hxg6 {[%clk 0:02:54]} 10. Qc2 {[%clk 0:02:58]}  dxc4 {[%clk 0:02:50]} 11. Bxc4 {[%clk 0:02:58]}  b5 {[%clk 0:02:50]} 12. Be2 {[%clk 0:02:53]}  a6 {[%clk 0:02:50]} 13. O-O-O {[%clk 0:02:53]}  c5 {[%clk 0:02:50]} 14. d5 {[%clk 0:02:44]}  exd5 {[%clk 0:02:48]} 15. g4 {[%clk 0:02:34]}  Nb6 {[%clk 0:02:41]} 16. g5 {[%clk 0:02:08]}  Nh5 {[%clk 0:02:39]} 17. Nxb5 {[%clk 0:01:33]}  Be7 {[%clk 0:02:20]} 18. Nc3 {[%clk 0:01:31]}  Bxg5 {[%clk 0:02:19]} 19. f4 {[%clk 0:01:30]}  Be7 {[%clk 0:02:19]} 20. Kb1 {[%clk 0:01:24]}  Nf6 {[%clk 0:02:18]} 21. h4 {[%clk 0:01:23]}  Qd7 {[%clk 0:02:12]} 22. Bc1 {[%clk 0:01:12]}  Qe6 {[%clk 0:02:01]} 23. Ka1 {[%clk 0:01:09]}  Kf8 {[%clk 0:01:43]} 24. Bf3 {[%clk 0:01:09]}  Rd8 {[%clk 0:01:40]} 25. Rh2 {[%clk 0:00:58]}  Kg8 {[%clk 0:01:35]} 26. Rg2 {[%clk 0:00:25]}  Rxh4 {[%clk 0:01:31]} 27. Rdg1 {[%clk 0:00:25]}  Bf8 {[%clk 0:01:31]} 28. Rh2 {[%clk 0:00:22]}  Rxh2 {[%clk 0:00:53]} 29. Qxh2 {[%clk 0:00:23]}  Qf5 {[%clk 0:00:53]} 30. Rh1 {[%clk 0:00:21]}  Nh5 {[%clk 0:00:53]} 31. e4 {[%clk 0:00:19]}  dxe4 {[%clk 0:00:52]} 32. Nxe4 {[%clk 0:00:19]}  f6 {[%clk 0:00:36]} 33. Ng3 {[%clk 0:00:17]}  Nxg3 {[%clk 0:00:34]} 34. Qxg3 {[%clk 0:00:18]}  Qd3 {[%clk 0:00:31]} 35. Qg2 {[%clk 0:00:17]}  Rd4 {[%clk 0:00:24]} 36. Be2 {[%clk 0:00:11]}  Qc2 {[%clk 0:00:21]} 37. Be3 {[%clk 0:00:05]}  Qe4 {[%clk 0:00:15]} 38. Qg1 {[%clk 0:00:00]}  Rd8 {[%clk 0:00:12]} 0-1


[Site "https://www.chess.com"]

[Event "Titled Tuesday Blitz May 16 Early 2023"]
[White "Yanchenko, Roman"]
[Black "Van Foreest, Jorden"]
[WhiteFideId "4137329"]
[BlackFideId "1039784"]
[WhiteElo "2491"]
[BlackElo "2633"]
[Result "1/2-1/2"]
[Round "05"]
[TimeControl "180+2"]
[Date "2023.05.16"]
[WhiteClock "0:00:18"]
[BlackClock "0:00:20"]

1. d4 {[%clk 0:03:00]}  Nf6 {[%clk 0:02:58]} 2. Nf3 {[%clk 0:03:00]}  g6 {[%clk 0:02:58]} 3. Bf4 {[%clk 0:03:00]}  Bg7 {[%clk 0:02:58]} 4. e3 {[%clk 0:03:01]}  O-O {[%clk 0:02:55]} 5. Be2 {[%clk 0:03:01]}  d6 {[%clk 0:02:52]} 6. O-O {[%clk 0:03:02]}  Nh5 {[%clk 0:02:52]} 7. Bg5 {[%clk 0:03:01]}  h6 {[%clk 0:02:53]} 8. Bh4 {[%clk 0:03:02]}  g5 {[%clk 0:02:52]} 9. Nfd2 {[%clk 0:03:02]}  Nf4 {[%clk 0:02:51]} 10. Bg3 {[%clk 0:03:02]}  Nxe2+ {[%clk 0:02:51]} 11. Qxe2 {[%clk 0:03:03]}  f5 {[%clk 0:02:45]} 12. f4 {[%clk 0:02:56]}  e6 {[%clk 0:02:44]} 13. c3 {[%clk 0:02:46]}  Nd7 {[%clk 0:02:44]} 14. e4 {[%clk 0:02:42]}  Nf6 {[%clk 0:02:37]} 15. e5 {[%clk 0:02:35]}  Nd5 {[%clk 0:02:37]} 16. exd6 {[%clk 0:02:22]}  cxd6 {[%clk 0:02:21]} 17. fxg5 {[%clk 0:02:04]}  hxg5 {[%clk 0:02:22]} 18. Na3 {[%clk 0:02:04]}  f4 {[%clk 0:02:17]} 19. Bf2 {[%clk 0:02:04]}  Bd7 {[%clk 0:02:07]} 20. Rae1 {[%clk 0:02:00]}  Qe7 {[%clk 0:02:05]} 21. h3 {[%clk 0:01:50]}  Rae8 {[%clk 0:02:05]} 22. Nf3 {[%clk 0:01:48]}  Qf6 {[%clk 0:02:00]} 23. Qd3 {[%clk 0:01:30]}  a6 {[%clk 0:01:58]} 24. Re2 {[%clk 0:01:27]}  b5 {[%clk 0:01:56]} 25. Nc2 {[%clk 0:01:27]}  Bc6 {[%clk 0:01:53]} 26. Rfe1 {[%clk 0:01:26]}  a5 {[%clk 0:01:46]} 27. a3 {[%clk 0:01:22]}  Nb6 {[%clk 0:01:45]} 28. b3 {[%clk 0:01:06]}  a4 {[%clk 0:01:26]} 29. bxa4 {[%clk 0:01:06]}  Nxa4 {[%clk 0:01:25]} 30. Nb4 {[%clk 0:01:06]}  Bd7 {[%clk 0:01:25]} 31. Nd2 {[%clk 0:01:02]}  Qf5 {[%clk 0:01:19]} 32. Qxf5 {[%clk 0:00:55]}  exf5 {[%clk 0:01:18]} 33. Rxe8 {[%clk 0:00:54]}  Rxe8 {[%clk 0:01:17]} 34. Rxe8+ {[%clk 0:00:54]}  Bxe8 {[%clk 0:01:18]} 35. c4 {[%clk 0:00:52]}  g4 {[%clk 0:01:09]} 36. hxg4 {[%clk 0:00:52]}  fxg4 {[%clk 0:01:10]} 37. g3 {[%clk 0:00:52]}  fxg3 {[%clk 0:01:09]} 38. Be3 {[%clk 0:00:53]}  Nb2 {[%clk 0:01:02]} 39. cxb5 {[%clk 0:00:47]}  Bxb5 {[%clk 0:01:02]} 40. Kg2 {[%clk 0:00:38]}  Nd1 {[%clk 0:00:59]} 41. Bf4 {[%clk 0:00:38]}  Bxd4 {[%clk 0:00:59]} 42. Kxg3 {[%clk 0:00:39]}  Bd7 {[%clk 0:00:57]} 43. Bxd6 {[%clk 0:00:36]}  Ne3 {[%clk 0:00:54]} 44. Bf4 {[%clk 0:00:21]}  Kf7 {[%clk 0:00:51]} 45. Ne4 {[%clk 0:00:19]}  Kg6 {[%clk 0:00:45]} 46. Nf2 {[%clk 0:00:05]}  Nf5+ {[%clk 0:00:41]} 47. Kg2 {[%clk 0:00:05]}  Kh5 {[%clk 0:00:37]} 48. Ne4 {[%clk 0:00:04]}  Bc8 {[%clk 0:00:36]} 49. Ng3+ {[%clk 0:00:04]}  Kg6 {[%clk 0:00:27]} 50. Nxf5 {[%clk 0:00:05]}  Kxf5 {[%clk 0:00:28]} 51. Bg3 {[%clk 0:00:05]}  Bb7+ {[%clk 0:00:28]} 52. Kh2 {[%clk 0:00:06]}  Ke4 {[%clk 0:00:27]} 53. Nc2 {[%clk 0:00:06]}  Bc5 {[%clk 0:00:26]} 54. Ne1 {[%clk 0:00:05]}  Bxa3 {[%clk 0:00:26]} 55. Ng2 {[%clk 0:00:06]}  Bc5 {[%clk 0:00:25]} 56. Nf4 {[%clk 0:00:06]}  Bc8 {[%clk 0:00:22]} 57. Kg2 {[%clk 0:00:06]}  Bf5 {[%clk 0:00:21]} 58. Nh5 {[%clk 0:00:06]}  Bd4 {[%clk 0:00:20]} 59. Bc7 {[%clk 0:00:05]}  Kd3 {[%clk 0:00:19]} 60. Nf4+ {[%clk 0:00:05]}  Ke3 {[%clk 0:00:19]} 61. Kg3 {[%clk 0:00:06]}  Ke4 {[%clk 0:00:18]} 62. Ng2 {[%clk 0:00:06]}  Bc5 {[%clk 0:00:17]} 63. Bb8 {[%clk 0:00:07]}  Bb4 {[%clk 0:00:16]} 64. Bc7 {[%clk 0:00:08]}  Bd7 {[%clk 0:00:16]} 65. Bb8 {[%clk 0:00:08]}  Kd3 {[%clk 0:00:16]} 66. Bc7 {[%clk 0:00:09]}  Ke2 {[%clk 0:00:17]} 67. Bb8 {[%clk 0:00:09]}  Kf1 {[%clk 0:00:17]} 68. Ne3+ {[%clk 0:00:09]}  Kg1 {[%clk 0:00:16]} 69. Nxg4 {[%clk 0:00:10]}  Be1+ {[%clk 0:00:16]} 70. Kh3 {[%clk 0:00:10]}  Be6 {[%clk 0:00:14]} 71. Bg3 {[%clk 0:00:08]}  Bc3 {[%clk 0:00:11]} 72. Kh4 {[%clk 0:00:09]}  Kg2 {[%clk 0:00:10]} 73. Be5 {[%clk 0:00:09]}  Bd2 {[%clk 0:00:09]} 74. Nf6 {[%clk 0:00:08]}  Kf3 {[%clk 0:00:09]} 75. Kh5 {[%clk 0:00:08]}  Bf5 {[%clk 0:00:07]} 76. Kh4 {[%clk 0:00:08]}  Bg6 {[%clk 0:00:06]} 77. Kh3 {[%clk 0:00:07]}  Bg5 {[%clk 0:00:06]} 78. Nd7 {[%clk 0:00:06]}  Bf5+ {[%clk 0:00:07]} 79. Kh2 {[%clk 0:00:06]}  Bxd7 {[%clk 0:00:07]} 80. Bd6 {[%clk 0:00:07]}  Be3 {[%clk 0:00:08]} 81. Bc7 {[%clk 0:00:07]}  Bd4 {[%clk 0:00:08]} 82. Bb8 {[%clk 0:00:08]}  Bf6 {[%clk 0:00:08]} 83. Bc7 {[%clk 0:00:08]}  Bg5 {[%clk 0:00:09]} 84. Bb8 {[%clk 0:00:09]}  Be3 {[%clk 0:00:09]} 85. Bc7 {[%clk 0:00:09]}  Bf2 {[%clk 0:00:10]} 86. Bb8 {[%clk 0:00:09]}  Ke2 {[%clk 0:00:10]} 87. Bc7 {[%clk 0:00:10]}  Kf1 {[%clk 0:00:11]} 88. Bb8 {[%clk 0:00:10]}  Bg1+ {[%clk 0:00:12]} 89. Kg3 {[%clk 0:00:11]}  Be3 {[%clk 0:00:12]} 90. Kh2 {[%clk 0:00:11]}  Kf2 {[%clk 0:00:11]} 91. Bc7 {[%clk 0:00:11]}  Kf3 {[%clk 0:00:11]} 92. Bb8 {[%clk 0:00:12]}  Bf2 {[%clk 0:00:11]} 93. Bc7 {[%clk 0:00:12]}  Ba7 {[%clk 0:00:12]} 94. Bd6 {[%clk 0:00:13]}  Bd4 {[%clk 0:00:13]} 95. Bc7 {[%clk 0:00:13]}  Bg4 {[%clk 0:00:13]} 96. Bb8 {[%clk 0:00:14]}  Bb6 {[%clk 0:00:13]} 97. Bd6 {[%clk 0:00:14]}  Ba7 {[%clk 0:00:14]} 98. Bc7 {[%clk 0:00:14]}  Kf2 {[%clk 0:00:14]} 99. Bd6 {[%clk 0:00:15]}  Bf3 {[%clk 0:00:14]} 100. Bc7 {[%clk 0:00:15]}  Kf1 {[%clk 0:00:14]} 101. Bd6 {[%clk 0:00:16]}  Bc6 {[%clk 0:00:13]} 102. Bc7 {[%clk 0:00:16]}  Bg1+ {[%clk 0:00:14]} 103. Kg3 {[%clk 0:00:16]}  Bc5 {[%clk 0:00:15]} 104. Kh2 {[%clk 0:00:16]}  Bg1+ {[%clk 0:00:14]} 105. Kg3 {[%clk 0:00:16]}  Ke2 {[%clk 0:00:15]} 106. Bb8 {[%clk 0:00:16]}  Ke3 {[%clk 0:00:16]} 107. Bc7 {[%clk 0:00:16]}  Ke4 {[%clk 0:00:16]} 108. Bb8 {[%clk 0:00:17]}  Kf5 {[%clk 0:00:17]} 109. Bc7 {[%clk 0:00:17]}  Ke6 {[%clk 0:00:18]} 110. Bb8 {[%clk 0:00:18]}  Kd7 {[%clk 0:00:18]} 111. Be5 {[%clk 0:00:17]}  Ke6 {[%clk 0:00:19]} 112. Bc7 {[%clk 0:00:18]}  Kf5 {[%clk 0:00:20]} 113. Bb8 {[%clk 0:00:18]}  Bh2+ {[%clk 0:00:20]} 114. Kxh2 {[%clk 0:00:18]} 1/2-1/2


[Site "https://www.chess.com"]

[Event "Titled Tuesday Blitz May 16 Early 2023"]
[White "Andreikin, Dmitry"]
[Black "Hafiz, Arif Abdul"]
[WhiteFideId "4158814"]
[BlackFideId "7104227"]
[WhiteElo "2736"]
[BlackElo "2198"]
[Result "1-0"]
[Round "05"]
[TimeControl "180+2"]
[Date "2023.05.16"]
[WhiteClock "0:01:00"]
[BlackClock "0:00:22"]

1. d4 {[%clk 0:03:00]}  Nf6 {[%clk 0:02:59]} 2. Bg5 {[%clk 0:02:58]}  e6 {[%clk 0:02:55]} 3. Nd2 {[%clk 0:02:58]}  h6 {[%clk 0:02:55]} 4. Bh4 {[%clk 0:02:57]}  d5 {[%clk 0:02:54]} 5. e3 {[%clk 0:02:57]}  c5 {[%clk 0:02:53]} 6. c3 {[%clk 0:02:57]}  Nc6 {[%clk 0:02:53]} 7. f4 {[%clk 0:02:56]}  g5 {[%clk 0:02:36]} 8. Bg3 {[%clk 0:02:56]}  Bd6 {[%clk 0:02:20]} 9. Ngf3 {[%clk 0:02:50]}  cxd4 {[%clk 0:02:19]} 10. cxd4 {[%clk 0:02:49]}  Ne4 {[%clk 0:02:17]} 11. Bd3 {[%clk 0:02:39]}  f5 {[%clk 0:02:00]} 12. O-O {[%clk 0:02:30]}  Nxg3 {[%clk 0:01:50]} 13. hxg3 {[%clk 0:02:29]}  g4 {[%clk 0:01:51]} 14. Ne5 {[%clk 0:02:21]}  Nxe5 {[%clk 0:01:47]} 15. dxe5 {[%clk 0:02:07]}  Bc5 {[%clk 0:01:44]} 16. Qe2 {[%clk 0:02:02]}  h5 {[%clk 0:01:42]} 17. Kf2 {[%clk 0:01:45]}  Bd7 {[%clk 0:01:33]} 18. Nb3 {[%clk 0:01:45]}  Bb6 {[%clk 0:01:25]} 19. Rac1 {[%clk 0:01:41]}  h4 {[%clk 0:01:25]} 20. Rh1 {[%clk 0:01:38]}  Kf7 {[%clk 0:01:24]} 21. Nd4 {[%clk 0:01:36]}  Rc8 {[%clk 0:01:07]} 22. Rxc8 {[%clk 0:01:31]}  hxg3+ {[%clk 0:01:04]} 23. Kxg3 {[%clk 0:01:29]}  Rxh1 {[%clk 0:00:59]} 24. Rxd8 {[%clk 0:01:22]}  Bxd8 {[%clk 0:00:59]} 25. Nf3 {[%clk 0:01:06]}  d4 {[%clk 0:00:34]} 26. Ng5+ {[%clk 0:01:03]}  Kg6 {[%clk 0:00:30]} 27. Qxg4 {[%clk 0:01:00]}  Kh6 {[%clk 0:00:24]} 28. Nf7+ {[%clk 0:00:59]}  Kh7 {[%clk 0:00:22]} 29. Nxd8 {[%clk 0:01:00]} 1-0


[Site "https://www.chess.com"]

[Event "Titled Tuesday Blitz May 16 Early 2023"]
[White "Martinez Alcantara, Jose Eduardo"]
[Black "Sychev, Klementy"]
[WhiteFideId "3805662"]
[BlackFideId "4114060"]
[WhiteElo "2711"]
[BlackElo "2583"]
[Result "1-0"]
[Round "05"]
[TimeControl "180+2"]
[Date "2023.05.16"]
[WhiteClock "0:00:27"]
[BlackClock "0:00:01"]

1. e4 {[%clk 0:03:00]}  e5 {[%clk 0:02:57]} 2. Nf3 {[%clk 0:03:01]}  Nc6 {[%clk 0:02:57]} 3. Bb5 {[%clk 0:03:01]}  a6 {[%clk 0:02:55]} 4. Ba4 {[%clk 0:03:01]}  f5 {[%clk 0:02:55]} 5. d4 {[%clk 0:02:55]}  exd4 {[%clk 0:02:55]} 6. e5 {[%clk 0:02:56]}  b5 {[%clk 0:02:55]} 7. Bb3 {[%clk 0:02:56]}  Bb7 {[%clk 0:02:55]} 8. O-O {[%clk 0:02:48]}  Na5 {[%clk 0:02:55]} 9. Nxd4 {[%clk 0:02:38]}  c5 {[%clk 0:02:55]} 10. Bxg8 {[%clk 0:02:30]}  cxd4 {[%clk 0:02:53]} 11. Bb3 {[%clk 0:02:29]}  Nxb3 {[%clk 0:02:34]} 12. axb3 {[%clk 0:02:29]}  Qb6 {[%clk 0:02:29]} 13. Nd2 {[%clk 0:02:22]}  Bc5 {[%clk 0:02:08]} 14. Nf3 {[%clk 0:02:09]}  O-O-O {[%clk 0:01:38]} 15. b4 {[%clk 0:01:57]}  Bxb4 {[%clk 0:01:37]} 16. Qxd4 {[%clk 0:01:57]}  Bc5 {[%clk 0:01:35]} 17. Qc3 {[%clk 0:01:52]}  b4 {[%clk 0:01:21]} 18. Qd3 {[%clk 0:01:51]}  g5 {[%clk 0:01:14]} 19. Be3 {[%clk 0:01:30]}  g4 {[%clk 0:00:53]} 20. Nh4 {[%clk 0:01:09]}  f4 {[%clk 0:00:44]} 21. Bxf4 {[%clk 0:01:03]}  Rhf8 {[%clk 0:00:37]} 22. Be3 {[%clk 0:00:52]}  Bxe3 {[%clk 0:00:37]} 23. Qxe3 {[%clk 0:00:51]}  Qxe3 {[%clk 0:00:37]} 24. fxe3 {[%clk 0:00:52]}  Be4 {[%clk 0:00:17]} 25. Rf4 {[%clk 0:00:40]}  Rxf4 {[%clk 0:00:12]} 26. exf4 {[%clk 0:00:41]}  Kb7 {[%clk 0:00:12]} 27. Ra4 {[%clk 0:00:42]}  a5 {[%clk 0:00:09]} 28. Rxa5 {[%clk 0:00:42]}  Kb6 {[%clk 0:00:10]} 29. Ra1 {[%clk 0:00:37]}  Bxc2 {[%clk 0:00:10]} 30. Kf2 {[%clk 0:00:34]}  Kb5 {[%clk 0:00:10]} 31. Rc1 {[%clk 0:00:30]}  Be4 {[%clk 0:00:06]} 32. Ke3 {[%clk 0:00:30]}  Bc6 {[%clk 0:00:06]} 33. Nf5 {[%clk 0:00:26]}  Ka4 {[%clk 0:00:05]} 34. Nd4 {[%clk 0:00:27]}  Re8 {[%clk 0:00:01]} 35. Ra1# {[%clk 0:00:27]} 1-0


[Site "https://www.chess.com"]